fUSD/lending_fUSD_20241107
["ID","MTS","AMOUNT","RATE_DAILY","PERIOD"]
[341529849,1730962231889,-5741.35620416,0.00031,3]
[341529851,1730962231899,-1800.49620561,0.00031,3]
[341529853,1730962231911,-498.2259774,0.00031,3]
[341529855,1730962231921,-2379.0,0.00031,5]
[341529857,1730962231930,-500.0,0.00031021,30]
[341529859,1730962231940,-500.0,0.00031021,30]
[341529861,1730962231950,-500.0,0.00031021,30]
[341529864,1730962231962,-500.0,0.00031021,30]
[341529865,1730962231972,-500.0,0.00031021,30]
[341529867,1730962231982,-751.32446283,0.00031021,30]
[341529870,1730962231994,-218.99683639,0.00031021,30]
[341529872,1730962232004,-196.14,0.00031294,120]
[341529874,1730962232014,-4534.8568,0.00031298,2]
[341529876,1730962232024,-1000.0,0.00031394,2]
[341529878,1730962232034,-328.09670175,0.00031396,2]
[341529880,1730962232044,-44621.0265,0.00031398,2]
[341529882,1730962232055,-22388.4971,0.00031398,2]
[341529884,1730962232065,-167.69,0.0003141,2]
[341529886,1730962232075,-444.21394206,0.00031473,5]
[341529888,1730962232084,-425.11682232,0.00031473,5]
[341529890,1730962232094,-500.0,0.00031473,2]
[341529892,1730962232103,-151.76966297,0.00031473,5]
[341529894,1730962232113,-652.32,0.00031484,3]
[341529896,1730962232123,-201.53851424,0.00031487,2]
[341529898,1730962232133,-500.0,0.00031494,2]
[341529900,1730962232142,-500.0,0.00031494,2]
[341529902,1730962232152,-500.0,0.00031494,2]
[341529903,1730962232161,-500.0,0.00031494,2]
[341529905,1730962232171,-449.0091034,0.00031494,2]
[341529907,1730962232181,-500.0,0.00031494,2]
[341529909,1730962232191,-500.0,0.00031494,2]
[341529911,1730962232200,-500.0,0.00031494,2]
[341529913,1730962232213,-500.0,0.00031494,2]
[341529915,1730962232223,-500.0,0.00031494,2]
[341529917,1730962232234,-500.0,0.00031494,2]
[341529919,1730962232244,-500.0,0.00031494,2]
[341529921,1730962232254,-500.0,0.00031494,2]
[341529923,1730962232264,-200.0,0.00031494,2]
[341529925,1730962232274,-500.0,0.00031494,4]
[341529927,1730962232284,-500.0,0.00031494,4]
[341529929,1730962232294,-1612.59,0.00031494,4]
[341529931,1730962232303,-500.0,0.00031494,4]
[341529933,1730962232312,-2551.15,0.00031494,4]
[341529935,1730962232322,-1216.35,0.00031494,4]
[341529937,1730962232331,-603.17,0.00031494,4]
[341529939,1730962232340,-616.23,0.00031494,4]
[341529941,1730962232352,-3147.07,0.00031494,4]
[341529943,1730962232361,-4486.42,0.00031494,4]
[341529945,1730962232371,-3144.66,0.00031494,4]
[341529947,1730962232380,-2188.25,0.00031494,4]
[341529949,1730962232389,-204.23254935,0.00031494,4]
[341529951,1730962232401,-1359.07745065,0.00031494,4]
[341529953,1730962232411,-581.3,0.00031494,4]
[341529955,1730962232420,-500.0,0.00031494,4]
[341529957,1730962232429,-813.25566949,0.00031494,4]
[341529960,1730962232449,-179.24433051,0.00031494,4]
[341529962,1730962232462,-3413.31896346,0.00031494,4]
[341529965,1730962232474,-274.07103654,0.00031494,4]
[341529967,1730962232484,-500.0,0.00031494,4]
[341529969,1730962232493,-660.4,0.00031494,4]
[341529971,1730962232503,-500.0,0.00031494,4]
[341529973,1730962232512,-500.0,0.00031494,4]
[341529975,1730962232522,-500.0,0.00031494,4]
[341529977,1730962232531,-1185.82,0.00031494,4]
[341529979,1730962232540,-500.0,0.00031494,4]
[341529981,1730962232549,-1821.2,0.00031494,4]
[341529983,1730962232558,-1066.32462113,0.00031494,4]
[341529985,1730962232569,-399.87537887,0.00031494,4]
[341529987,1730962232579,-111.0802571,0.00031494,4]
[341529989,1730962232590,-593.7297429,0.00031494,4]
[341529991,1730962232599,-500.0,0.00031494,4]
[341529993,1730962232608,-500.0,0.00031494,4]
[341529995,1730962232617,-500.0,0.00031494,4]
[341529997,1730962232627,-500.0,0.00031494,4]
[341529999,1730962232635,-601.6,0.00031494,4]
[341530001,1730962232645,-546.83,0.00031494,4]
[341530003,1730962232655,-500.0,0.00031495,4]
[341530005,1730962232665,-504.1965137,0.00031495,4]
[341530007,1730962232674,-501.97009267,0.00031495,4]
[341530009,1730962232685,-500.0,0.00031495,4]
[341530011,1730962232695,-666.8,0.00031495,4]
[341530013,1730962232706,-500.0,0.00031495,4]
[341530015,1730962232715,-500.0,0.00031495,4]
[341530017,1730962232724,-890.46,0.00031495,4]
[341530019,1730962232735,-500.0,0.00031495,4]
[341530021,1730962232745,-502.89980102,0.00031495,4]
[341530023,1730962232754,-503.90032933,0.00031495,4]
[341530025,1730962232763,-548.21262851,0.00031495,4]
[341530027,1730962232772,-537.50966911,0.00031495,4]
[341530029,1730962232781,-500.0,0.00031495,4]
[341530031,1730962232791,-502.88822025,0.00031495,4]
[341530033,1730962232799,-500.0,0.00031495,4]
[341530035,1730962232808,-500.0,0.00031495,4]
[341530037,1730962232817,-500.0,0.00031495,4]
[341530039,1730962232826,-619.7,0.00031495,4]
[341530041,1730962232835,-500.0,0.00031495,4]
[341530043,1730962232845,-500.0,0.00031495,4]
[341530045,1730962232854,-500.0,0.00031495,4]
[341530047,1730962232863,-500.0,0.00031495,4]
[341530049,1730962232872,-500.0,0.00031495,4]
[341530051,1730962232882,-500.0,0.00031495,4]
[341530053,1730962232891,-544.76,0.00031495,4]
[341530055,1730962232901,-500.0,0.00031495,4]
[341530057,1730962232910,-920.72,0.00031495,4]
[341530059,1730962232920,-500.0,0.00031495,4]
[341530061,1730962232929,-500.0,0.00031495,4]
[341530063,1730962232938,-590.23,0.00031495,4]
[341530065,1730962232947,-500.0,0.00031495,4]
[341530067,1730962232959,-4173.35,0.00031495,4]
[341530069,1730962232968,-500.0,0.00031495,4]
[341530071,1730962232977,-500.0,0.00031495,4]
[341530073,1730962232986,-500.0,0.00031495,4]
[341530074,1730962232995,-500.0,0.00031495,4]
[341530076,1730962233004,-500.0,0.00031495,4]
[341530078,1730962233013,-500.0,0.00031495,4]
[341530080,1730962233023,-500.0,0.00031495,4]
[341530082,1730962233032,-2343.54,0.00031495,4]
[341530085,1730962233042,-500.0,0.00031495,4]
[341530087,1730962233052,-591.56,0.00031495,4]
[341530089,1730962233061,-1053.05,0.00031495,4]
[341530091,1730962233071,-500.0,0.00031495,4]
[341530093,1730962233081,-500.0,0.00031495,4]
[341530095,1730962233090,-500.0,0.00031495,4]
[341530097,1730962233101,-500.0,0.00031495,4]
[341530099,1730962233111,-462.17863114,0.00031495,4]
[341530101,1730962233121,-249.17877205,0.00031495,4]
[341530103,1730962233131,-500.0,0.00031495,4]
[341530105,1730962233141,-514.93,0.00031495,4]
[341530107,1730962233152,-1291.83,0.00031495,4]
[341530109,1730962233162,-500.0,0.00031495,4]
[341530111,1730962233172,-671.96,0.00031495,4]
[341530114,1730962233183,-372.808853,0.00031495,4]
[341530116,1730962233194,-2070.51,0.00031495,4]
[341530118,1730962233204,-500.0,0.00031495,4]
[341530120,1730962233216,-500.0,0.00031495,4]
[341530122,1730962233226,-3771.23,0.00031495,4]
[341530124,1730962233237,-500.0,0.00031495,4]
[341530126,1730962233247,-558.66,0.00031495,4]
[341530128,1730962233257,-500.0,0.00031495,4]
[341530130,1730962233267,-500.0,0.00031495,4]
[341530132,1730962233277,-500.0,0.00031495,4]
[341530134,1730962233287,-500.0,0.00031495,4]
[341530136,1730962233297,-1285.43,0.00031495,4]
[341530138,1730962233307,-9744.04,0.00031495,4]
[341530140,1730962233317,-500.0,0.00031495,4]
[341530142,1730962233327,-714.86,0.00031495,4]
[341530144,1730962233336,-559.87,0.00031495,4]
[341530146,1730962233346,-500.0,0.00031495,4]
[341530149,1730962233355,-500.0,0.00031495,4]
[341530150,1730962233364,-380.974689,0.00031495,4]
[341530153,1730962233374,-157.950212,0.00031495,4]
[341530155,1730962233383,-155.931552,0.00031495,4]
[341530157,1730962233392,-500.0,0.00031495,4]
[341530158,1730962233401,-500.0,0.00031495,4]
[341530160,1730962233411,-500.0,0.00031495,4]
[341530162,1730962233420,-509.8657401,0.00031495,4]
[341530164,1730962233430,-1617.9,0.00031495,4]
[341530166,1730962233439,-1876.28,0.00031495,4]
[341530169,1730962233449,-500.0,0.00031495,4]
[341530171,1730962233462,-500.0,0.00031495,4]
[341530173,1730962233471,-500.0,0.00031495,4]
[341530174,1730962233481,-500.0,0.00031495,4]
[341530177,1730962233491,-1494.21,0.00031495,4]
[341530179,1730962233502,-500.0,0.00031495,4]
[341530181,1730962233512,-500.0,0.00031495,4]
[341530183,1730962233522,-702.08,0.00031495,4]
[341530185,1730962233531,-500.0,0.00031495,4]
[341530187,1730962233541,-6925.04,0.00031495,4]
[341530189,1730962233551,-500.0,0.00031495,4]
[341530191,1730962233560,-549.54,0.00031495,4]
[341530193,1730962233570,-915.71,0.00031495,4]
[341530195,1730962233579,-500.0,0.00031495,4]
[341530197,1730962233589,-503.41416702,0.00031495,4]
[341530199,1730962233599,-687.42,0.00031495,4]
[341530201,1730962233609,-831.7,0.00031495,4]
[341530203,1730962233618,-1143.96,0.00031495,4]
[341530205,1730962233628,-500.0,0.00031495,4]
[341530207,1730962233637,-503.66982759,0.00031495,4]
[341530209,1730962233647,-500.0,0.00031495,4]
[341530211,1730962233657,-694.07,0.00031495,4]
[341530213,1730962233666,-1015.89,0.00031495,4]
[341530215,1730962233678,-500.0,0.00031495,4]
[341530217,1730962233687,-500.0,0.00031495,4]
[341530218,1730962233697,-500.0,0.00031495,4]
[341530220,1730962233709,-500.0,0.00031495,4]
[341530222,1730962233719,-503.14095733,0.00031495,4]
[341530224,1730962233729,-513.37,0.00031495,4]
[341530226,1730962233739,-500.0,0.00031495,4]
[341530228,1730962233748,-521.36923351,0.00031495,4]
[341530229,1730962233759,-572.06,0.00031495,4]
[341530230,1730962233769,-500.0,0.00031495,4]
[341530231,1730962233779,-500.0,0.00031495,4]
[341530232,1730962233789,-500.0,0.00031495,4]
[341530233,1730962233799,-500.0,0.00031495,4]
[341530234,1730962233808,-500.0,0.00031495,4]
[341530235,1730962233817,-1261.41,0.00031495,4]
[341530236,1730962233827,-500.0,0.00031495,4]
[341530237,1730962233836,-1130.67,0.00031495,4]
[341530238,1730962233845,-500.0,0.00031495,4]
[341530239,1730962233854,-1722.06,0.00031495,4]
[341530240,1730962233863,-500.0,0.00031495,4]
[341530241,1730962233872,-500.0,0.00031495,4]
[341530243,1730962233881,-500.0,0.00031495,4]
[341530245,1730962233891,-500.0,0.00031495,4]
[341530247,1730962233901,-500.0,0.00031495,4]
[341530249,1730962233911,-4802.58,0.00031495,4]
[341530251,1730962233920,-1006.14,0.00031495,4]
[341530253,1730962233930,-500.0,0.00031495,4]
[341530255,1730962233940,-500.0,0.00031495,4]
[341530256,1730962233949,-500.0,0.00031495,4]
[341530257,1730962233964,-1764.8,0.00031495,4]
[341530258,1730962233977,-500.0,0.00031495,4]
[341530259,1730962233987,-500.0,0.00031495,4]
[341530260,1730962233997,-500.0,0.00031495,4]
[341530261,1730962234008,-500.0,0.00031495,4]
[341530262,1730962234018,-500.0,0.00031495,4]
[341530263,1730962234028,-500.0,0.00031495,4]
[341530264,1730962234038,-1024.19,0.00031495,4]
[341530265,1730962234048,-500.0,0.00031495,4]
[341530266,1730962234058,-523.33,0.00031495,4]
[341530267,1730962234068,-500.0,0.00031495,4]
[341530268,1730962234079,-500.0,0.00031495,4]
[341530269,1730962234089,-2281.98,0.00031495,4]
[341530270,1730962234100,-500.0,0.00031495,4]
[341530271,1730962234110,-500.0,0.00031495,4]
[341530272,1730962234120,-500.0,0.00031495,4]
[341530273,1730962234130,-1148.92,0.00031495,4]
[341530274,1730962234140,-500.0,0.00031495,4]
[341530275,1730962234151,-618.04,0.00031495,4]
[341530276,1730962234161,-500.0,0.00031495,4]
[341530277,1730962234172,-500.0,0.00031495,4]
[341530278,1730962234182,-4132.76,0.00031495,4]
[341530279,1730962234193,-500.0,0.00031495,4]
[341530280,1730962234203,-500.0,0.00031495,4]
[341530281,1730962234219,-500.0,0.00031495,4]
[341530282,1730962234229,-356.69310561,0.00031495,4]
[341530283,1730962234264,-143.30689439,0.00031495,4]
[341530284,1730962234275,-203.52,0.00031495,4]
[341530285,1730962234286,-123.76990165,0.00031495,4]
[341530286,1730962234299,-405.69009835,0.00031495,4]
[341530287,1730962234309,-440.77990165,0.00031495,4]
[341530288,1730962234321,-181.25009835,0.00031495,4]
[341530289,1730962234331,-168.97990155,0.00031496,4]
[341530290,1730962234343,-331.02009845,0.00031496,4]
[341530291,1730962234353,-980.38,0.00031496,4]
[341530292,1730962234363,-181.83725193,0.00031496,4]
[341530293,1730962234373,-616.65,0.00031496,4]
[341530294,1730962234383,-500.0,0.00031496,4]
[341530295,1730962234393,-500.0,0.00031496,4]
[341530296,1730962234403,-625.16,0.00031496,4]
[341530297,1730962234413,-587.14,0.00031496,4]
[341530298,1730962234423,-503.4235232,0.00031496,4]
[341530299,1730962234432,-500.0,0.00031496,4]
[341530300,1730962234442,-809.28,0.00031496,4]
[341530301,1730962234452,-500.0,0.00031496,4]
[341530302,1730962234465,-999.3,0.00031496,4]
[341530303,1730962234474,-500.0,0.00031496,4]
[341530304,1730962234485,-500.0,0.00031496,4]
[341530305,1730962234496,-1419.86,0.00031496,4]
[341530306,1730962234506,-789.89,0.00031496,4]
[341530307,1730962234515,-500.0,0.00031496,4]
[341530308,1730962234525,-735.21,0.00031496,4]
[341530309,1730962234535,-503.92131441,0.00031496,4]
[341530310,1730962234545,-512.43,0.00031496,4]
[341530311,1730962234555,-500.0,0.00031496,4]
[341530312,1730962234564,-557.9,0.00031496,4]
[341530313,1730962234575,-570.12,0.00031496,4]
[341530314,1730962234584,-500.0,0.00031496,4]
[341530315,1730962234593,-780.87,0.00031496,4]
[341530316,1730962234603,-500.0,0.00031496,4]
[341530317,1730962234613,-685.26,0.00031496,4]
[341530318,1730962234622,-905.86,0.00031496,4]
[341530319,1730962234632,-281.42027645,0.00031496,4]
[341530320,1730962234679,-218.57972355,0.00031496,4]
[341530321,1730962234689,-500.0,0.00031496,4]
[341530322,1730962234699,-500.0,0.00031496,4]
[341530323,1730962234710,-500.0,0.00031496,4]
[341530324,1730962234719,-518.32820252,0.00031496,4]
[341530325,1730962234729,-500.0,0.00031496,4]
[341530326,1730962234739,-500.0,0.00031496,4]
[341530327,1730962234750,-849.32,0.00031496,4]
[341530328,1730962234998,-500.0,0.00031496,4]
[341530329,1730962235008,-500.0,0.00031496,4]
[341530330,1730962235018,-500.0,0.00031496,4]
[341530331,1730962235028,-500.0,0.00031496,4]
[341530332,1730962235037,-819.49,0.00031496,4]
[341530333,1730962235047,-500.0,0.00031496,4]
[341530334,1730962235057,-500.0,0.00031496,4]
[341530335,1730962235066,-168.80770514,0.00031496,4]
[341530336,1730962235077,-500.0,0.00031496,4]
[341530337,1730962235086,-810.56,0.00031496,4]
[341530338,1730962235097,-500.0,0.00031496,4]
[341530339,1730962235106,-1345.2,0.00031496,4]
[341530340,1730962235115,-500.0,0.00031496,4]
[341530341,1730962235125,-638.29,0.00031496,4]
[341530342,1730962235134,-500.0,0.00031496,4]
[341530343,1730962235144,-746.32,0.00031496,4]
[341530344,1730962235154,-509.58,0.00031496,4]
[341530345,1730962235164,-1304.96,0.00031496,4]
[341530346,1730962235173,-858.56,0.00031496,4]
[341530347,1730962235182,-500.0,0.00031496,4]
[341530348,1730962235192,-500.0,0.00031496,4]
[341530349,1730962235201,-568.29,0.00031496,4]
[341530350,1730962235215,-600.96,0.00031496,4]
[341530351,1730962235224,-500.0,0.00031496,4]
[341530352,1730962235233,-500.0,0.00031496,4]
[341530353,1730962235243,-500.0,0.00031496,4]
[341530354,1730962235252,-535.22010009,0.00031496,4]
[341530355,1730962235262,-500.0,0.00031496,4]
[341530356,1730962235271,-597.27,0.00031496,4]
[341530357,1730962235280,-1107.72,0.00031496,4]
[341530358,1730962235289,-847.61,0.00031496,4]
[341530359,1730962235298,-406.58900688,0.00031496,4]
[341530360,1730962235311,-93.41099312,0.00031496,4]
[341530361,1730962235320,-830.53,0.00031496,4]
[341530362,1730962235329,-1377.05,0.00031496,4]
[341530363,1730962235338,-500.0,0.00031496,4]
[341530364,1730962235347,-500.0,0.00031496,4]
[341530365,1730962235357,-500.0,0.00031496,4]
[341530366,1730962235366,-651.36,0.00031496,4]
[341530367,1730962235376,-500.0,0.00031496,4]
[341530368,1730962235386,-555.34,0.00031496,4]
[341530369,1730962235395,-500.0,0.00031496,4]
[341530370,1730962235405,-500.0,0.00031496,4]
[341530371,1730962235414,-645.26,0.00031496,4]
[341530372,1730962235424,-677.46,0.00031496,4]
[341530373,1730962235433,-500.0,0.00031496,4]
[341530374,1730962235442,-500.0,0.00031496,4]
[341530375,1730962235452,-620.29,0.00031496,4]
[341530376,1730962235464,-500.0,0.00031496,4]
[341530377,1730962235473,-692.72,0.00031496,4]
[341530378,1730962235482,-500.0,0.00031496,4]
[341530379,1730962235492,-500.0,0.00031496,4]
[341530380,1730962235501,-1942.44,0.00031496,4]
[341530381,1730962235511,-500.0,0.00031496,4]
[341530382,1730962235520,-1239.88,0.00031496,4]
[341530383,1730962235529,-628.37,0.00031496,4]
[341530384,1730962235538,-765.26,0.00031496,4]
[341530385,1730962235547,-1066.22,0.00031496,4]
[341530386,1730962235556,-500.0,0.00031496,4]
[341530387,1730962235565,-500.0,0.00031496,4]
[341530388,1730962235574,-1164.74,0.00031496,4]
[341530389,1730962235583,-500.0,0.00031496,4]
[341530390,1730962235593,-724.65,0.00031496,4]
[341530391,1730962235602,-1344.95,0.00031496,4]
[341530392,1730962235611,-2550.9,0.00031496,4]
[341530393,1730962235620,-500.0,0.00031496,4]
[341530394,1730962235629,-702.91,0.00031496,4]
[341530395,1730962235639,-696.84,0.00031496,4]
[341530396,1730962235647,-36.88335076,0.00031496,4]
[341530402,1730962237620,-150.0,0.0003008,2]
[341530403,1730962237630,-966.63659927,0.00030693,2]
[341530404,1730962237641,-33.36340073,0.00030693,2]
[341530405,1730962237650,-2003.71600293,0.00031494,4]
[341530406,1730962237983,-69.11399707,0.00031494,4]
[341530407,1730962237994,-500.0,0.00031495,4]
[341530408,1730962238003,-500.0,0.00031495,4]
[341530409,1730962238013,-463.11664924,0.00031496,4]
[341530410,1730962238022,-870.76,0.00031496,4]
[341530411,1730962238031,-2325.41,0.00031496,4]
[341530412,1730962238040,-2107.16,0.00031496,4]
[341530413,1730962238050,-1360.27,0.00031496,4]
[341530414,1730962238059,-948.09,0.00031496,4]
[341530415,1730962238069,-7240.2,0.00031496,4]
[341530416,1730962238079,-1628.09,0.00031496,4]
[341530417,1730962238088,-500.0,0.00031496,4]
[341530418,1730962238097,-1031.61,0.00031496,4]
[341530419,1730962238106,-1477.07,0.00031496,4]
[341530420,1730962238115,-1247.69,0.00031496,4]
[341530421,1730962238124,-500.0,0.00031496,4]
[341530422,1730962238134,-523.04,0.00031496,4]
[341530423,1730962238143,-814.54,0.00031496,4]
[341530424,1730962238153,-501.68754053,0.00031496,4]
[341530425,1730962238163,-500.0,0.00031496,4]
[341530426,1730962238172,-1287.4,0.00031496,4]
[341530427,1730962238182,-498.59264064,0.00031496,4]
[341530428,1730962238192,-500.0,0.00031496,4]
[341530429,1730962238201,-500.0,0.00031496,4]
[341530430,1730962238213,-500.0,0.00031496,4]
[341530431,1730962238222,-2211.71,0.00031496,4]
[341530432,1730962238232,-3356.26,0.00031496,4]
[341530433,1730962238241,-500.0,0.00031496,4]
[341530434,1730962238250,-3329.3,0.00031496,4]
[341530435,1730962238259,-500.0,0.00031496,4]
[341530436,1730962238269,-500.0,0.00031496,4]
[341530437,1730962238278,-248.40570232,0.00031496,4]
[341530438,1730962238290,-433.54429768,0.00031496,4]
[341530440,1730962238300,-826.29,0.00031496,4]
[341530442,1730962238309,-500.0,0.00031496,4]
[341530444,1730962238318,-500.0,0.00031496,4]
[341530446,1730962238328,-500.0,0.00031496,4]
[341530448,1730962238337,-1793.45,0.00031496,4]
[341530450,1730962238347,-500.0,0.00031496,4]
[341530452,1730962238356,-500.0,0.00031496,4]
[341530454,1730962238365,-500.0,0.00031496,4]
[341530456,1730962238374,-500.0,0.00031496,4]
[341530458,1730962238385,-500.0,0.00031496,4]
[341530460,1730962238394,-500.0,0.00031496,4]
[341530462,1730962238403,-1169.03,0.00031496,4]
[341530464,1730962238412,-500.0,0.00031496,4]
[341530466,1730962238421,-506.21448657,0.00031496,4]
[341530468,1730962238432,-268.66321574,0.00031496,4]
[341530470,1730962238444,-231.33678426,0.00031496,4]
[341530472,1730962238453,-515.29,0.00031496,4]
[341530474,1730962238464,-500.0,0.00031496,4]
[341530476,1730962238473,-673.45,0.00031496,4]
[341530478,1730962238482,-2944.64,0.00031496,4]
[341530480,1730962238491,-1648.15,0.00031496,4]
[341530482,1730962238500,-263.23411796,0.00031496,4]
[341530484,1730962238510,-556.74,0.00031496,4]
[341530486,1730962238519,-510.77226123,0.00031496,4]
[341530488,1730962238528,-2525.16,0.00031496,4]
[341530490,1730962238538,-500.0,0.00031496,4]
[341530492,1730962238547,-500.0,0.00031496,4]
[341530494,1730962238556,-1012.93,0.00031496,4]
[341530495,1730962238566,-500.0,0.00031496,4]
[341530497,1730962238575,-500.0,0.00031496,4]
[341530499,1730962238584,-500.0,0.00031496,4]
[341530501,1730962238593,-500.0,0.00031496,4]
[341530503,1730962238602,-500.0,0.00031496,4]
[341530505,1730962238612,-5789.43,0.00031496,4]
[341530507,1730962238621,-3166.65,0.00031496,4]
[341530509,1730962238632,-500.0,0.00031496,4]
[341530511,1730962238641,-406.77498168,0.00031496,4]
[341530513,1730962238650,-500.0,0.00031496,4]
[341530515,1730962238661,-1602.15,0.00031496,4]
[341530517,1730962238673,-984.08,0.00031496,4]
[341530518,1730962238682,-500.0,0.00031496,4]
[341530520,1730962238691,-500.0,0.00031496,4]
[341530522,1730962238700,-2119.46,0.00031496,4]
[341530524,1730962238713,-500.0,0.00031496,4]
[341530526,1730962238722,-867.57,0.00031496,4]
[341530528,1730962238731,-469.5393458,0.00031496,4]
[341530530,1730962238740,-577.11679214,0.00031496,4]
[341530532,1730962238750,-2476.71,0.00031496,4]
[341530534,1730962238760,-500.0,0.00031496,4]
[341530536,1730962238769,-3122.99,0.00031496,4]
[341530538,1730962238778,-500.0,0.00031496,4]
[341530540,1730962238787,-737.97,0.00031496,4]
[341530542,1730962238796,-1593.62,0.00031496,4]
[341530544,1730962238805,-500.0,0.00031496,4]
[341530546,1730962238814,-500.0,0.00031496,4]
[341530548,1730962238823,-502.06772978,0.00031496,4]
[341530549,1730962238832,-1745.66,0.00031496,4]
[341530551,1730962238841,-500.0,0.00031496,4]
[341530553,1730962238851,-756.88,0.00031496,4]
[341530556,1730962238860,-1697.69,0.00031496,4]
[341530557,1730962238869,-500.0,0.00031496,4]
[341530560,1730962238880,-500.0,0.00031496,4]
[341530562,1730962238890,-500.0,0.00031496,4]
[341530563,1730962238899,-649.23,0.00031496,4]
[341530565,1730962238910,-500.0,0.00031497,4]
[341530567,1730962238920,-500.0,0.00031497,4]
[341530569,1730962238929,-655.12,0.00031497,4]
[341530571,1730962238938,-500.0,0.00031497,4]
[341530573,1730962238947,-500.0,0.00031497,4]
[341530575,1730962238956,-500.0,0.00031497,4]
[341530577,1730962238971,-587.46,0.00031497,4]
[341530580,1730962238980,-592.17,0.00031497,4]
[341530581,1730962238989,-500.0,0.00031497,4]
[341530583,1730962238999,-500.0,0.00031497,4]
[341530585,1730962239009,-500.0,0.00031497,4]
[341530587,1730962239019,-500.0,0.00031497,4]
[341530589,1730962239028,-561.66223582,0.00031497,4]
[341530591,1730962239038,-588.94,0.00031497,4]
[341530593,1730962239048,-500.0,0.00031497,4]
[341530595,1730962239057,-500.0,0.00031497,4]
[341530598,1730962239067,-500.0,0.00031497,4]
[341530600,1730962239078,-969.73,0.00031497,4]
[341530601,1730962239087,-601.04,0.00031497,4]
[341530604,1730962239097,-500.0,0.00031497,4]
[341530606,1730962239106,-500.0,0.00031497,4]
[341530608,1730962239116,-566.01,0.00031497,4]
[341530610,1730962239126,-500.0,0.00031497,4]
[341530612,1730962239135,-500.0,0.00031497,4]
[341530614,1730962239145,-641.65,0.00031497,4]
[341530616,1730962239155,-581.48787717,0.00031497,4]
[341530618,1730962239164,-500.0,0.00031497,4]
[341530620,1730962239175,-500.0,0.00031497,4]
[341530622,1730962239192,-500.0,0.00031497,4]
[341530624,1730962239206,-500.0,0.00031497,4]
[341530626,1730962239219,-776.25,0.00031497,4]
[341530628,1730962239228,-500.0,0.00031497,4]
[341530629,1730962239238,-500.0,0.00031497,4]
[341530630,1730962239247,-500.0,0.00031497,4]
[341530631,1730962239256,-500.0,0.00031497,4]
[341530632,1730962239266,-500.0,0.00031497,4]
[341530633,1730962239276,-500.0,0.00031497,4]
[341530634,1730962239286,-618.93,0.00031497,4]
[341530635,1730962239295,-500.0,0.00031497,4]
[341530636,1730962239304,-500.0,0.00031497,4]
[341530637,1730962239313,-500.0,0.00031497,4]
[341530638,1730962239322,-500.0,0.00031497,4]
[341530639,1730962239332,-500.0,0.00031497,4]
[341530640,1730962239341,-500.0,0.00031497,4]
[341530641,1730962239351,-500.0,0.00031497,4]
[341530642,1730962239360,-9.56627416,0.00031497,4]
[341530643,1730962239445,-30.76550436,0.00031497,4]
[341530650,1730962240974,-500.0,0.00031495,4]
[341530651,1730962240984,-459.66822148,0.00031497,4]